lending/lending_fUSD_20250122
["ID","MTS","AMOUNT","RATE_DAILY","PERIOD"]
[350043582,1737589857126,-500.0,0.00019726,2]
[350043583,1737589857135,-500.0,0.00019726,2]
[350043584,1737589857144,-500.0,0.00019726,2]
[350043585,1737589857153,-500.0,0.00019726,2]
[350043586,1737589857162,-500.0,0.00019726,2]
[350043587,1737589857173,-500.0,0.00019726,2]
[350043588,1737589857182,-500.0,0.00019726,2]
[350043589,1737589857193,-500.0,0.00019726,2]
[350043590,1737589857204,-500.0,0.00019726,2]
[350043591,1737589857214,-500.0,0.00019726,2]
[350043592,1737589857224,-500.0,0.00019726,2]
[350043593,1737589857233,-500.0,0.00019726,2]
[350043594,1737589857243,-500.0,0.00019726,2]
[350043595,1737589857254,-500.0,0.00019726,2]
[350043596,1737589857264,-500.0,0.00019726,2]
[350043597,1737589857274,-765.88,0.00019726,2]
[350043598,1737589857285,-500.0,0.00019726,2]
[350043599,1737589857295,-500.0,0.00019726,2]
[350043600,1737589857308,-500.0,0.00019726,2]
[350043601,1737589857318,-500.0,0.00019726,2]
[350043602,1737589857328,-500.0,0.00019726,2]
[350043603,1737589857338,-500.0,0.00019726,2]
[350043604,1737589857349,-500.0,0.00019726,2]
[350043605,1737589857358,-500.0,0.00019726,2]
[350043606,1737589857366,-652.57,0.00019726,2]
[350043607,1737589857375,-245.83312068,0.00019726,2]
[350043608,1737589857384,-500.0,0.00019726,2]
[350043609,1737589857393,-500.0,0.00019726,2]
[350043610,1737589857403,-1287.7,0.00019726,2]
[350043611,1737589857411,-1546.7,0.00019726,2]
[350043612,1737589857420,-500.0,0.00019726,2]
[350043613,1737589857430,-838.92,0.00019726,2]
[350043614,1737589857439,-500.0,0.00019726,2]
[350043615,1737589857448,-503.68962632,0.00019726,2]
[350043616,1737589857457,-500.0,0.00019726,2]
[350043617,1737589857466,-2180.71,0.00019726,2]
[350043618,1737589857475,-500.0,0.00019726,2]
[350043619,1737589857484,-458.14512055,0.00019726,2]
[350043620,1737589857493,-500.0,0.00019726,2]
[350043621,1737589857502,-1572.16,0.00019726,2]
[350043622,1737589857511,-500.0,0.00019726,2]
[350043623,1737589857520,-500.0,0.00019726,2]
[350043624,1737589857529,-1121.81,0.00019726,2]
[350043625,1737589857538,-500.0,0.00019726,2]
[350043626,1737589857548,-547.58,0.00019726,2]
[350043627,1737589857558,-500.0,0.00019726,2]
[350043628,1737589857568,-500.0,0.00019726,2]
[350043629,1737589857578,-500.0,0.00019726,2]
[350043630,1737589857588,-815.96,0.00019726,2]
[350043631,1737589857597,-500.0,0.00019726,2]
[350043632,1737589857607,-500.0,0.00019726,2]
[350043633,1737589857617,-2360.98,0.00019726,2]
[350043634,1737589857627,-500.0,0.00019726,2]
[350043635,1737589857639,-500.0,0.00019726,2]
[350043636,1737589857648,-500.0,0.00019726,2]
[350043637,1737589857658,-500.0,0.00019726,2]
[350043638,1737589857668,-500.0,0.00019726,2]
[350043639,1737589857677,-538.80520954,0.00019726,2]
[350043640,1737589857687,-910.26,0.00019726,2]
[350043641,1737589857696,-500.0,0.00019726,2]
[350043642,1737589857706,-500.0,0.00019726,2]
[350043643,1737589857715,-500.0,0.00019726,2]
[350043644,1737589857725,-500.0,0.00019726,2]
[350043645,1737589857734,-3579.52,0.00019726,2]
[350043646,1737589857744,-500.0,0.00019726,2]
[350043647,1737589857753,-500.0,0.00019726,2]
[350043648,1737589857763,-374.57035135,0.00019726,2]
[350043649,1737589857774,-1020.26,0.00019726,2]
[350043650,1737589857783,-816.8,0.00019726,2]
[350043651,1737589857794,-500.0,0.00019726,2]
[350043652,1737589857806,-500.0,0.00019726,2]
[350043653,1737589857816,-500.0,0.00019726,2]
[350043654,1737589857825,-1534.71,0.00019726,2]
[350043655,1737589857836,-555.35,0.00019726,2]
[350043656,1737589857847,-990.24,0.00019726,2]
[350043657,1737589857856,-500.0,0.00019726,2]
[350043658,1737589857866,-500.0,0.00019726,2]
[350043659,1737589857875,-750.16,0.00019726,2]
[350043660,1737589857886,-200.0,0.00019726,2]
[350043661,1737589857896,-521.17323948,0.00019726,2]
[350043662,1737589857905,-590.81,0.00019726,2]
[350043663,1737589857915,-500.0,0.00019726,2]
[350043664,1737589857928,-500.0,0.00019726,2]
[350043665,1737589857938,-500.0,0.00019726,2]
[350043666,1737589857947,-500.0,0.00019726,2]
[350043667,1737589857957,-3379.86,0.00019726,2]
[350043668,1737589857967,-544.72,0.00019726,2]
[350043669,1737589857977,-800.62,0.00019726,2]
[350043670,1737589857987,-500.0,0.00019726,2]
[350043671,1737589857996,-1740.52,0.00019726,2]
[350043672,1737589858005,-500.0,0.00019726,2]
[350043673,1737589858014,-500.0,0.00019726,2]
[350043674,1737589858023,-500.0,0.00019726,2]
[350043675,1737589858033,-500.0,0.00019726,2]
[350043676,1737589858042,-500.0,0.00019726,2]
[350043677,1737589858052,-500.0,0.00019726,2]
[350043678,1737589858061,-1441.73,0.00019726,2]
[350043679,1737589858071,-1251.69,0.00019726,2]
[350043680,1737589858080,-500.0,0.00019726,2]
[350043681,1737589858089,-780.06,0.00019726,2]
[350043682,1737589858099,-500.0,0.00019726,2]
[350043683,1737589858109,-500.0,0.00019726,2]
[350043684,1737589858118,-3789.34,0.00019726,2]
[350043685,1737589858128,-777.96,0.00019726,2]
[350043686,1737589858137,-500.0,0.00019726,2]
[350043687,1737589858147,-500.0,0.00019726,2]
[350043688,1737589858158,-2145.32,0.00019726,2]
[350043689,1737589858167,-500.0,0.00019726,2]
[350043690,1737589858280,-500.0,0.00019726,2]
[350043691,1737589858290,-500.0,0.00019726,2]
[350043692,1737589858299,-500.0,0.00019726,2]
[350043693,1737589858308,-500.0,0.00019726,2]
[350043694,1737589858318,-500.0,0.00019726,2]
[350043695,1737589858327,-549.36,0.00019726,2]
[350043696,1737589858337,-1275.06,0.00019726,2]
[350043697,1737589858346,-500.0,0.00019726,2]
[350043698,1737589858355,-500.0,0.00019726,2]
[350043699,1737589858366,-1297.39,0.00019726,2]
[350043700,1737589858376,-686.57,0.00019726,2]
[350043701,1737589858385,-500.0,0.00019726,2]
[350043702,1737589858394,-1625.03,0.00019726,2]
[350043703,1737589858403,-500.0,0.00019726,2]
[350043704,1737589858412,-2726.18,0.00019726,2]
[350043705,1737589858423,-500.0,0.00019726,2]
[350043706,1737589858431,-500.0,0.00019726,2]
[350043707,1737589858440,-1030.76,0.00019726,2]
[350043708,1737589858449,-500.0,0.00019726,2]
[350043709,1737589858459,-500.0,0.00019726,2]
[350043710,1737589858468,-528.25,0.00019726,2]
[350043711,1737589858477,-500.0,0.00019726,2]
[350043712,1737589858486,-500.0,0.00019726,2]
[350043713,1737589858495,-500.0,0.00019726,2]
[350043714,1737589858505,-1002.95,0.00019726,2]
[350043715,1737589858514,-1366.7,0.00019726,2]
[350043716,1737589858523,-500.0,0.00019726,2]
[350043717,1737589858533,-500.0,0.00019726,2]
[350043718,1737589858542,-500.0,0.00019726,2]
[350043719,1737589858552,-500.0,0.00019726,2]
[350043720,1737589858561,-500.0,0.00019726,2]
[350043721,1737589858570,-500.0,0.00019726,2]
[350043722,1737589858579,-500.0,0.00019726,2]
[350043723,1737589858588,-500.0,0.00019726,2]
[350043724,1737589858597,-500.0,0.00019726,2]
[350043725,1737589858606,-500.0,0.00019726,2]
[350043726,1737589858617,-1907.84,0.00019726,2]
[350043727,1737589858626,-500.0,0.00019726,2]
[350043728,1737589858635,-967.57,0.00019726,2]
[350043729,1737589858644,-221.58523925,0.00019726,2]
[350043730,1737589858653,-698.63,0.00019726,2]
[350043731,1737589858662,-500.0,0.00019726,2]
[350043732,1737589858672,-500.0,0.00019726,2]
[350043733,1737589858681,-792.56,0.00019726,2]
[350043734,1737589858691,-1453.04,0.00019726,2]
[350043735,1737589858700,-2009.3,0.00019726,2]
[350043736,1737589858709,-500.0,0.00019726,2]
[350043737,1737589858718,-2031.03,0.00019726,2]
[350043738,1737589858727,-500.0,0.00019726,2]
[350043739,1737589858736,-500.0,0.00019726,2]
[350043740,1737589858745,-500.0,0.00019726,2]
[350043741,1737589858755,-500.0,0.00019726,2]
[350043742,1737589858764,-507.89,0.00019726,2]
[350043743,1737589858773,-500.0,0.00019726,2]
[350043744,1737589858782,-920.23,0.00019726,2]
[350043745,1737589858791,-500.0,0.00019726,2]
[350043746,1737589858800,-583.77,0.00019726,2]
[350043747,1737589858811,-774.7,0.00019726,2]
[350043748,1737589858820,-500.0,0.00019726,2]
[350043749,1737589858830,-500.0,0.00019726,2]
[350043750,1737589858839,-500.0,0.00019726,2]
[350043751,1737589858848,-559.95,0.00019726,2]
[350043752,1737589858858,-500.0,0.00019726,2]
[350043753,1737589858867,-500.0,0.00019726,2]
[350043754,1737589858876,-1492.67,0.00019726,2]
[350043755,1737589858885,-500.0,0.00019726,2]
[350043756,1737589858895,-500.0,0.00019726,2]
[350043757,1737589858904,-500.0,0.00019726,2]
[350043758,1737589858913,-858.14,0.00019726,2]
[350043759,1737589858923,-500.0,0.00019726,2]
[350043760,1737589858931,-500.0,0.00019726,2]
[350043761,1737589858940,-500.0,0.00019726,2]
[350043762,1737589858950,-500.0,0.00019726,2]
[350043763,1737589858960,-500.0,0.00019726,2]
[350043764,1737589858971,-500.0,0.00019726,2]
[350043765,1737589858982,-500.0,0.00019726,2]
[350043766,1737589858992,-842.12,0.00019726,2]
[350043767,1737589859002,-1816.37,0.00019726,2]
[350043768,1737589859012,-500.0,0.00019726,2]
[350043769,1737589859022,-500.0,0.00019726,2]
[350043770,1737589859031,-546.71,0.00019726,2]
[350043771,1737589859042,-500.0,0.00019726,2]
[350043772,1737589859051,-1072.38,0.00019726,2]
[350043773,1737589859060,-500.0,0.00019726,2]
[350043774,1737589859069,-527.56,0.00019726,2]
[350043775,1737589859079,-200.0,0.00019726,2]
[350043776,1737589859088,-1301.95,0.00019726,2]
[350043777,1737589859098,-627.25,0.00019726,2]
[350043778,1737589859109,-500.0,0.00019726,2]
[350043779,1737589859119,-2112.25,0.00019726,2]
[350043780,1737589859131,-500.0,0.00019726,2]
[350043781,1737589859143,-584.64,0.00019726,2]
[350043782,1737589859152,-500.0,0.00019726,2]
[350043783,1737589859161,-1251.56,0.00019726,2]
[350043784,1737589859170,-522.48411876,0.00019726,2]
[350043785,1737589859179,-540.01,0.00019726,2]
[350043786,1737589859188,-500.0,0.00019726,2]
[350043787,1737589859197,-500.0,0.00019726,2]
[350043788,1737589859207,-500.0,0.00019726,2]
[350043789,1737589859217,-500.0,0.00019726,2]
[350043790,1737589859227,-551.89,0.00019726,2]
[350043791,1737589859236,-500.0,0.00019726,2]
[350043792,1737589859245,-500.0,0.00019726,2]
[350043793,1737589859255,-500.0,0.00019726,2]
[350043794,1737589859266,-500.0,0.00019726,2]
[350043795,1737589859276,-740.17,0.00019726,2]
[350043796,1737589859285,-500.0,0.00019726,2]
[350043797,1737589859294,-500.0,0.00019726,2]
[350043798,1737589859303,-500.0,0.00019726,2]
[350043799,1737589859312,-500.0,0.00019726,2]
[350043800,1737589859322,-500.0,0.00019726,2]
[350043801,1737589859331,-500.0,0.00019726,2]
[350043802,1737589859340,-500.0,0.00019726,2]
[350043803,1737589859349,-500.0,0.00019726,2]
[350043804,1737589859359,-500.0,0.00019726,2]
[350043805,1737589859370,-748.82,0.00019726,2]
[350043806,1737589859379,-704.89,0.00019726,2]
[350043807,1737589859389,-526.44,0.00019726,2]
[350043808,1737589859398,-500.0,0.00019726,2]
[350043809,1737589859408,-500.0,0.00019726,2]
[350043810,1737589859419,-500.0,0.00019726,2]
[350043811,1737589859428,-334.5524923,0.00019726,2]
[350043812,1737589859438,-504.68628447,0.00019726,2]
[350043813,1737589859447,-1636.56,0.00019726,2]
[350043814,1737589859456,-500.0,0.00019726,2]
[350043815,1737589859465,-469.55873766,0.00019726,2]
[350043816,1737589859475,-500.0,0.00019726,2]
[350043817,1737589859486,-420.79750231,0.00019726,2]
[350043818,1737589859496,-500.0,0.00019726,2]
[350043819,1737589859506,-545.43,0.00019726,2]
[350043820,1737589859516,-500.0,0.00019726,2]
[350043821,1737589859527,-520.17767518,0.00019726,2]
[350043822,1737589859539,-743.3,0.00019726,2]
[350043823,1737589859548,-500.0,0.00019726,2]
[350043824,1737589859559,-500.0,0.00019726,2]
[350043825,1737589859568,-500.0,0.00019726,2]
[350043826,1737589859577,-500.0,0.00019726,2]
[350043827,1737589859587,-500.0,0.00019726,2]
[350043828,1737589859596,-500.0,0.00019726,2]
[350043829,1737589859606,-500.0,0.00019726,2]
[350043830,1737589859615,-500.0,0.00019726,2]
[350043831,1737589859624,-1462.88,0.00019726,2]
[350043832,1737589859634,-500.0,0.00019726,2]
[350043833,1737589859644,-500.0,0.00019726,2]
[350043834,1737589859655,-500.0,0.00019726,2]
[350043835,1737589859664,-1233.05,0.00019726,2]
[350043836,1737589859674,-267.06474965,0.00019726,2]
[350043837,1737589859684,-1082.60806916,0.00019728,2]
[350043838,1737589859694,-500.0,0.00019773,2]
[350043839,1737589859703,-500.0,0.00019773,2]
[350043840,1737589859712,-209.0,0.0001985,2]
[350043841,1737589859721,-169.82,0.00019863,2]
[350043842,1737589859731,-2653.94759836,0.000199,2]
[350043843,1737589859740,-151.0,0.00019965,2]
[350043844,1737589859749,-1082.60806916,0.00019969,2]
[350043845,1737589859758,-1207.24,0.00019985,2]
[350043846,1737589859767,-500.0,0.00019998,2]
[350043847,1737589859776,-169.69,0.00019998,2]
[350043848,1737589859786,-768.82,0.00019999,2]
[350043849,1737589859795,-923.78,0.00019999,2]
[350043850,1737589859804,-1336.3,0.00019999,2]
[350043851,1737589859816,-500.0,0.00019999,2]
[350043852,1737589859825,-1288.45,0.00019999,2]
[350043853,1737589859835,-2918.91,0.00019999,2]
[350043854,1737589859844,-817.26,0.00019999,2]
[350043855,1737589859855,-5167.79,0.00019999,2]
[350043856,1737589859864,-1010.9,0.00019999,2]
[350043857,1737589859873,-1021.38,0.00019999,2]
[350043858,1737589859882,-2382.17,0.00019999,2]
[350043859,1737589859893,-500.0,0.00019999,2]
[350043860,1737589859903,-1032.52,0.00019999,2]
[350043861,1737589859912,-1408.61,0.00019999,2]
[350043862,1737589859925,-1596.34,0.00019999,2]
[350043863,1737589859934,-500.0,0.00019999,2]
[350043864,1737589859944,-508.10632727,0.00019999,2]
[350043865,1737589859953,-1000.0,0.00019999,2]
[350043866,1737589859963,-1292.95,0.00019999,2]
[350043867,1737589859972,-510.7,0.00019999,2]
[350043868,1737589859981,-2055.42,0.00019999,2]
[350043869,1737589859991,-2287.73,0.00019999,2]
[350043870,1737589860000,-500.0,0.0002,2]
[350043871,1737589860010,-630.78,0.0002,2]
[350043872,1737589860020,-500.0,0.0002,2]
[350043873,1737589860029,-500.0,0.0002,2]
[350043874,1737589860038,-500.0,0.0002,2]
[350043875,1737589860047,-500.0,0.0002,2]
[350043876,1737589860161,-500.0,0.0002,2]
[350043877,1737589860171,-740.69,0.0002,2]
[350043878,1737589860181,-500.0,0.0002,2]
[350043879,1737589860191,-500.0,0.0002,2]
[350043880,1737589860201,-500.0,0.0002,2]
[350043881,1737589860210,-500.0,0.0002,2]
[350043882,1737589860220,-500.0,0.0002,2]
[350043883,1737589860229,-500.0,0.0002,2]
[350043884,1737589860239,-500.0,0.0002,2]
[350043885,1737589860248,-500.0,0.0002,2]
[350043886,1737589860258,-500.0,0.0002,2]
[350043887,1737589860267,-500.0,0.0002,2]
[350043888,1737589860278,-500.0,0.0002,2]
[350043889,1737589860287,-512.94047981,0.0002,2]
[350043890,1737589860297,-500.0,0.0002,2]
[350043891,1737589860307,-500.0,0.0002,2]
[350043892,1737589860316,-500.0,0.0002,2]
[350043893,1737589860325,-294.82772123,0.0002,2]
[350043894,1737589860335,-500.0,0.0002,2]
[350043895,1737589860344,-500.0,0.0002,2]
[350043896,1737589860354,-500.0,0.0002,2]
[350043897,1737589860364,-500.0,0.0002,2]
[350043898,1737589860373,-500.0,0.0002,2]
[350043899,1737589860383,-500.0,0.0002,2]
[350043900,1737589860392,-500.0,0.0002,2]
[350043901,1737589860401,-500.0,0.0002,2]
[350043902,1737589860410,-468.71514508,0.0002,2]
[350043903,1737589860420,-500.0,0.0002,2]
[350043904,1737589860430,-500.0,0.0002,2]
[350043905,1737589860439,-500.0,0.0002,2]
[350043906,1737589860450,-500.0,0.0002,2]
[350043907,1737589860459,-500.0,0.0002,2]
[350043908,1737589860469,-500.0,0.0002,2]
[350043909,1737589860478,-500.0,0.0002,2]
[350043910,1737589860487,-500.0,0.0002,2]
[350043911,1737589860497,-512.52384005,0.0002,2]
[350043912,1737589860506,-500.0,0.0002,2]
[350043913,1737589860516,-500.0,0.0002,2]
[350043914,1737589860525,-500.0,0.0002,2]
[350043915,1737589860534,-500.0,0.0002,2]
[350043916,1737589860544,-500.0,0.0002,2]
[350043917,1737589860554,-168.53,0.0002,2]
[350043918,1737589860563,-500.0,0.0002,2]
[350043919,1737589860572,-500.0,0.0002,2]
[350043920,1737589860582,-500.0,0.0002,2]
[350043921,1737589860591,-500.0,0.0002,2]
[350043922,1737589860602,-500.0,0.0002,2]
[350043923,1737589860611,-500.0,0.0002,2]
[350043924,1737589860621,-500.0,0.0002,2]
[350043925,1737589860630,-500.0,0.0002,2]
[350043926,1737589860639,-500.0,0.0002,2]
[350043927,1737589860648,-500.0,0.0002,2]
[350043928,1737589860659,-511.57,0.0002,2]
[350043929,1737589860670,-500.0,0.0002,2]
[350043930,1737589860680,-500.0,0.0002,2]
[350043931,1737589860690,-500.0,0.0002,2]
[350043932,1737589860701,-500.0,0.0002,2]
[350043933,1737589860711,-649.0,0.0002,2]
[350043934,1737589860720,-500.0,0.0002,2]
[350043935,1737589860730,-500.0,0.0002,2]
[350043936,1737589860739,-500.0,0.0002,2]
[350043937,1737589860748,-449.13646041,0.0002,2]
[350043938,1737589860758,-500.0,0.0002,2]
[350043939,1737589860767,-511.55,0.0002,2]
[350043940,1737589860777,-500.0,0.0002,2]
[350043941,1737589860786,-500.0,0.0002,2]
[350043942,1737589860796,-500.0,0.0002,2]
[350043943,1737589860806,-500.0,0.0002,2]
[350043944,1737589860817,-500.0,0.0002,2]
[350043945,1737589860826,-1018.96,0.0002,2]
[350043946,1737589860835,-500.0,0.0002,2]
[350043947,1737589860844,-500.0,0.0002,2]
[350043948,1737589860854,-500.0,0.0002,2]
[350043949,1737589860863,-500.0,0.0002,2]
[350043950,1737589860872,-500.0,0.0002,2]
[350043951,1737589860881,-500.0,0.0002,2]
[350043952,1737589860893,-500.0,0.0002,2]
[350043953,1737589860902,-500.0,0.0002,2]
[350043954,1737589860911,-500.0,0.0002,2]
[350043955,1737589860921,-500.0,0.0002,2]
[350043956,1737589860931,-500.0,0.0002,2]
[350043957,1737589860940,-500.0,0.0002,2]
[350043958,1737589860949,-500.0,0.0002,2]
[350043959,1737589860959,-500.0,0.0002,2]
[350043960,1737589860968,-500.0,0.0002,2]
[350043961,1737589860977,-500.0,0.0002,2]
[350043962,1737589860987,-500.0,0.0002,2]
[350043963,1737589860996,-500.0,0.0002,2]
[350043964,1737589861006,-500.0,0.0002,2]
[350043965,1737589861015,-500.0,0.0002,2]
[350043966,1737589861024,-500.0,0.0002,2]
[350043967,1737589861033,-500.0,0.0002,2]
[350043968,1737589861043,-500.0,0.0002,2]
[350043969,1737589861052,-500.0,0.0002,2]
[350043970,1737589861062,-500.0,0.0002,2]
[350043971,1737589861071,-500.0,0.0002,2]
[350043972,1737589861080,-500.0,0.0002,2]
[350043973,1737589861089,-500.0,0.0002,2]
[350043974,1737589861100,-500.0,0.0002,2]
[350043975,1737589861109,-500.0,0.0002,2]
[350043976,1737589861118,-500.0,0.0002,2]
[350043977,1737589861127,-500.0,0.0002,2]
[350043978,1737589861137,-500.0,0.0002,2]
[350043979,1737589861146,-500.0,0.0002,2]
[350043980,1737589861155,-500.0,0.0002,2]
[350043981,1737589861164,-598.94,0.0002,2]
[350043982,1737589861176,-500.0,0.0002,2]
[350043983,1737589861185,-500.0,0.0002,2]
[350043984,1737589861195,-500.0,0.0002,2]
[350043985,1737589861204,-500.0,0.0002,2]
[350043986,1737589861214,-500.0,0.0002,2]
[350043987,1737589861223,-500.0,0.0002,2]
[350043988,1737589861232,-695.16,0.0002,2]
[350043989,1737589861242,-671.33,0.0002,2]
[350043990,1737589861251,-500.0,0.0002,2]
[350043991,1737589861260,-500.0,0.0002,2]
[350043992,1737589861270,-543.627625,0.0002,2]
[350043993,1737589861279,-311.84005177,0.0002,2]
[350043994,1737589861288,-500.0,0.0002,2]
[350043995,1737589861298,-207.63022035,0.0002,2]
[350043996,1737589861307,-500.0,0.0002,2]
[350043997,1737589861316,-500.0,0.0002,2]
[350043998,1737589861325,-500.0,0.0002,2]
[350043999,1737589861335,-500.0,0.0002,2]
[350044000,1737589861344,-500.0,0.0002,2]
[350044001,1737589861354,-500.0,0.0002,2]
[350044002,1737589861363,-500.0,0.0002,2]
[350044003,1737589861373,-555.88,0.0002,2]
[350044004,1737589861383,-500.0,0.0002,2]
[350044005,1737589861392,-500.0,0.0002,2]
[350044006,1737589861402,-394.688421,0.0002,2]
[350044007,1737589861412,-500.0,0.0002,2]
[350044008,1737589861424,-500.0,0.0002,2]
[350044009,1737589861434,-500.0,0.0002,2]
[350044010,1737589861443,-500.0,0.0002,2]
[350044011,1737589861453,-500.0,0.0002,2]
[350044012,1737589861463,-500.0,0.0002,2]
[350044013,1737589861475,-500.0,0.0002,2]
[350044014,1737589861484,-500.0,0.0002,2]
[350044015,1737589861494,-500.0,0.0002,2]
[350044016,1737589861503,-500.0,0.0002,2]
[350044017,1737589861512,-597.29,0.0002,2]
[350044018,1737589861521,-500.0,0.0002,2]
[350044019,1737589861531,-500.0,0.0002,2]
[350044020,1737589861539,-709.42,0.0002,2]
[350044021,1737589861549,-500.0,0.0002,2]
[350044022,1737589861558,-500.0,0.0002,2]
[350044023,1737589861568,-500.0,0.0002,2]
[350044024,1737589861577,-500.51,0.0002,2]
[350044025,1737589861587,-500.0,0.0002,2]
[350044026,1737589861596,-723.29,0.0002,2]
[350044027,1737589861606,-549.76,0.0002,2]
[350044028,1737589861615,-500.0,0.0002,2]
[350044029,1737589861624,-500.0,0.0002,2]
[350044030,1737589861635,-568.07847523,0.0002,2]
[350044031,1737589861644,-500.0,0.0002,2]
[350044032,1737589861655,-797.3,0.0002,2]
[350044033,1737589861666,-349.25385768,0.0002,2]
[350044034,1737589861676,-500.0,0.0002,2]
[350044035,1737589861686,-500.0,0.0002,2]
[350044036,1737589861696,-500.0,0.0002,2]
[350044037,1737589861705,-692.07,0.0002,2]
[350044038,1737589861715,-500.0,0.0002,2]
[350044039,1737589861725,-517.1690949,0.0002,2]
[350044040,1737589861735,-500.0,0.0002,2]
[350044041,1737589861745,-251.41905559,0.0002,2]
[350044042,1737589861754,-500.0,0.0002,2]
[350044043,1737589861763,-713.28,0.0002,2]
[350044044,1737589861772,-500.0,0.0002,2]
[350044045,1737589861781,-500.0,0.0002,2]
[350044046,1737589861791,-547.44,0.0002,2]
[350044047,1737589861897,-500.0,0.0002,2]
[350044048,1737589861906,-378.02765458,0.0002,2]
[350044049,1737589861916,-500.0,0.0002,2]
[350044050,1737589861926,-500.0,0.0002,2]
[350044051,1737589861935,-500.0,0.0002,2]
[350044052,1737589861946,-500.0,0.0002,2]
[350044053,1737589861955,-500.0,0.0002,2]
[350044054,1737589861965,-603.08,0.0002,2]
[350044055,1737589861974,-500.0,0.0002,2]
[350044056,1737589861983,-305.14785612,0.0002,2]
[350044057,1737589861992,-500.0,0.0002,2]
[350044058,1737589862001,-500.0,0.0002,2]
[350044059,1737589862011,-500.0,0.0002,2]
[350044060,1737589862020,-500.0,0.0002,2]
[350044061,1737589862030,-500.0,0.0002,2]
[350044062,1737589862039,-500.0,0.0002,2]
[350044063,1737589862048,-500.0,0.0002,2]
[350044064,1737589862057,-500.0,0.0002,2]
[350044065,1737589862066,-500.0,0.0002,2]
[350044066,1737589862075,-500.0,0.0002,2]
[350044067,1737589862085,-500.0,0.0002,2]
[350044068,1737589862094,-500.0,0.0002,2]
[350044069,1737589862104,-765.88,0.0002,2]
[350044070,1737589862114,-500.0,0.0002,2]
[350044071,1737589862124,-435.83605725,0.0002,2]
[350044072,1737589862135,-500.0,0.0002,2]
[350044073,1737589862146,-500.0,0.0002,2]
[350044074,1737589862156,-500.0,0.0002,2]
[350044075,1737589862167,-652.57,0.0002,2]
[350044076,1737589862177,-18348.7234585,0.0002,2]
[350044077,1737589862186,-500.0,0.0002,2]
[350044078,1737589862196,-500.0,0.0002,2]
[350044079,1737589862206,-1287.7,0.0002,2]
[350044080,1737589862217,-1546.7,0.0002,2]
[350044081,1737589862227,-500.0,0.0002,2]